{"text_format":"1","workbook":"xlsx","n_sheets":7,"sheets":["Rozpočet_stratpro","X.vzor","1.Pozemky","7.Osobní náklady","Paušál","data","List2"],"not_rendered":{"charts":0,"images":1,"macros":1,"external_links":0,"defined_names":0,"comments":4,"pivot_tables":0},"unopened":[],"bounds":{"document_bytes":16777216,"sheet_cells":100000,"rows_first":2000,"rows_last":500,"rows_between":2000,"halvings":0,"cell_chars":16384,"cell_head_chars":4096},"cells_cut":0,"cells_raw":0,"read":"whole","date_system":"1900"}

{"sheet":"Rozpočet_stratpro","index":0,"n_rows":121,"n_cols":7,"rows_kept":121,"cut":false,"hidden":false,"merged":[[106,3,108,6],[0,3,7,10]]}
["Kumulativní rozpočet projektu",null,"Instrukce:","Editujte pouze zelená pole. Struktura kategorií a podkategorií nákladů odpovídá struktuře nákladů uvedené v Pravidlech pro žadatele, kap. C.4. U nákladových celků, které nemají samostatný rozpočet doložitelný jako zvláštní přílohu (např. výkaz výměr), vytvořte a položkově rozepište (pod)kategorie na nově vytvořených listech tohoto Excelu dle příkladu listu \"X.vzor / 1.Pozemky\". V případě kategorií, které se nerozpadají na (pod)kategorie nebo položky, ale jsou vykazovány za více partnerů, postupujte stejně. Na tomto listu nepřidávejte nové řádky. V případě úspěšné žádosti bude tabulka doplněna o sloupce, kdy příjemce bude ke každé ŽoP přilkládat tento Excel s vyznačením čerpání pro každou položku. Excel vkládejte do MS2021+ zazipovaný, jelikož nepodporuje soubor s makry."]
["Název žadatele"]
["Název projektu"]
[]
["Priorita"]
["Specifický cíl",{"$f":"IF(Rozpočet_stratpro!B5=data!A2,data!B2,(IF(B5=data!A3,data!B3,data!B4)))","v":"3.1"}]
[]
["Souhrnný rozpočet"]
["Název ","Výdaje bez DPH","Sazba DPH","Výdaje s DPH","Nezpůsobilá část výdajů stanovená žadatelem (bez DPH)","Nezpůsobilá část DPH","Způsobilé výdaje po zohlednění způsobilosti DPH"]
["1. Investiční výdaje",{"$f":"SUM(B11,B12,B15:B19,B22:B24,B40:B45,B52,B55,B51)","v":0},null,{"$f":"SUM(D11,D12,D15:D19,D22:D24,D40:D45,,D52,D55,D51)","v":0},{"$f":"SUM(E11,E12,E15:E19,E22:E24,E40:E45,L24,E52,E55,E51)","v":0},{"$f":"SUM(F11,F12,F15:F19,F22:F24,F40:F45,M24,F52,F55,F51)","v":0},{"$f":"SUM(G11,G12,G15:G19,G22:G24,G40:G45,G52,G51)","v":0}]
["1.1 Pozemky (nákup)",0,0.21,{"$f":"B11+(B11*C11)","v":0},0,0,{"$f":"IF(data!$G$2=TRUE,(Rozpočet_stratpro!B11-Rozpočet_stratpro!E11),(Rozpočet_stratpro!D11-(Rozpočet_stratpro!E11+(E11*C11)))-F11)","v":0}]
["1.2 Budovy, stavby",{"$f":"SUM(B13:B14)","v":0},null,{"$f":"SUM(D13:D14)","v":0},{"$f":"SUM(E13:E14)","v":0},{"$f":"SUM(F13:F14)","v":0},{"$f":"G13+G14","v":0}]
["1.2.1 Stavby pořízené formou výstavby a stavební úpravy",0,0.21,{"$f":"B13+(B13*C13)","v":0},0,0,{"$f":"IF(data!$G$2=TRUE,(Rozpočet_stratpro!B13-Rozpočet_stratpro!E13),(Rozpočet_stratpro!D13-(Rozpočet_stratpro!E13+(E13*C13)))-F13)","v":0}]
["1.2.2 Pořízení nemovitosti (budovy) ",0,0.21,0,0,0,{"$f":"IF(data!$G$2=TRUE,(Rozpočet_stratpro!B14-Rozpočet_stratpro!E14),(Rozpočet_stratpro!D14-(Rozpočet_stratpro!E14+(E14*C14)))-F14)","v":0}]
["1.3. Hmotný movitý majetek",0,0.21,0,0,0,{"$f":"IF(data!$G$2=TRUE,(Rozpočet_stratpro!B15-Rozpočet_stratpro!E15),(Rozpočet_stratpro!D15-(Rozpočet_stratpro!E15+(E15*C15)))-F15)","v":0}]
["1.4. Materiál",0,0.21,0,0,0,{"$f":"IF(data!$G$2=TRUE,(Rozpočet_stratpro!B16-Rozpočet_stratpro!E16),(Rozpočet_stratpro!D16-(Rozpočet_stratpro!E16+(E16*C16)))-F16)","v":0}]
["1.5. Nehmotný majetek",0,0.21,0,0,0,{"$f":"IF(data!$G$2=TRUE,(Rozpočet_stratpro!B17-Rozpočet_stratpro!E17),(Rozpočet_stratpro!D17-(Rozpočet_stratpro!E17+(E17*C17)))-F17)","v":0}]
["1.6. Majetek pořízený vlastní činností (aktivací)",0,0.21,0,0,0,{"$f":"IF(data!$G$2=TRUE,(Rozpočet_stratpro!B18-Rozpočet_stratpro!E18),(Rozpočet_stratpro!D18-(Rozpočet_stratpro!E18+(E18*C18)))-F18)","v":0}]
["1.7. Osobní náklady",0,null,0,0,0,{"$f":"IF(data!$G$2=TRUE,(Rozpočet_stratpro!B19-Rozpočet_stratpro!E19),(Rozpočet_stratpro!D19-(Rozpočet_stratpro!E19+(E19*C19))))","v":0}]
["1.7.1 Hlavní administrativní tým",0,null,0,0,0,{"$f":"IF(data!$G$2=TRUE,(Rozpočet_stratpro!B20-Rozpočet_stratpro!E20),(Rozpočet_stratpro!D20-(Rozpočet_stratpro!E20+(E20*C20))))","v":0}]
["1.7.2 Odborný tým",0,null,0,0,0,{"$f":"IF(data!$G$2=TRUE,(Rozpočet_stratpro!B21-Rozpočet_stratpro!E21),(Rozpočet_stratpro!D21-(Rozpočet_stratpro!E21+(E21*C21))))","v":0}]
["1.8. Autorské příspěvky",0,0.21,0,0,0,{"$f":"IF(data!$G$2=TRUE,(Rozpočet_stratpro!B22-Rozpočet_stratpro!E22),(Rozpočet_stratpro!D22-(Rozpočet_stratpro!E22+(E22*C22)))-F22)","v":0}]
["1.9. Cestovní náhrady (odborný tým)",0,0.21,0,0,0,{"$f":"IF(data!$G$2=TRUE,(Rozpočet_stratpro!B23-Rozpočet_stratpro!E23),(Rozpočet_stratpro!D23-(Rozpočet_stratpro!E23+(E23*C23)))-F23)","v":0}]
["1.10. Služby",{"$f":"SUM(B25:B39)","v":0},null,{"$f":"SUM(D25:D39)","v":0},{"$f":"SUM(E25:E39)","v":0},{"$f":"SUM(F25:F39)","v":0},{"$f":"SUM(G25:G39)","v":0}]
["1.10.1 Podkategorie 1",0,0.21,0,0,0,{"$f":"IF(data!$G$2=TRUE,(Rozpočet_stratpro!B25-Rozpočet_stratpro!E25),(Rozpočet_stratpro!D25-(Rozpočet_stratpro!E25+(E25*C25)))-F25)","v":0}]
["1.10.2 Podkategorie 2",0,0.21,0,0,0,{"$f":"IF(data!$G$2=TRUE,(Rozpočet_stratpro!B26-Rozpočet_stratpro!E26),(Rozpočet_stratpro!D26-(Rozpočet_stratpro!E26+(E26*C26)))-F26)","v":0}]
["1.10.3 Podkategorie 3",0,0.21,0,0,0,{"$f":"IF(data!$G$2=TRUE,(Rozpočet_stratpro!B27-Rozpočet_stratpro!E27),(Rozpočet_stratpro!D27-(Rozpočet_stratpro!E27+(E27*C27)))-F27)","v":0}]
["1.10.4 Podkategorie 4",0,0.21,0,0,0,{"$f":"IF(data!$G$2=TRUE,(Rozpočet_stratpro!B28-Rozpočet_stratpro!E28),(Rozpočet_stratpro!D28-(Rozpočet_stratpro!E28+(E28*C28)))-F28)","v":0}]
["1.10.5 Podkategorie 5",0,0.21,0,0,0,{"$f":"IF(data!$G$2=TRUE,(Rozpočet_stratpro!B29-Rozpočet_stratpro!E29),(Rozpočet_stratpro!D29-(Rozpočet_stratpro!E29+(E29*C29)))-F29)","v":0}]
["1.10.6 Podkategorie 6",0,0.21,0,0,0,{"$f":"IF(data!$G$2=TRUE,(Rozpočet_stratpro!B30-Rozpočet_stratpro!E30),(Rozpočet_stratpro!D30-(Rozpočet_stratpro!E30+(E30*C30)))-F30)","v":0}]
["1.10.7 Podkategorie 7",0,0.21,0,0,0,{"$f":"IF(data!$G$2=TRUE,(Rozpočet_stratpro!B31-Rozpočet_stratpro!E31),(Rozpočet_stratpro!D31-(Rozpočet_stratpro!E31+(E31*C31)))-F31)","v":0}]
["1.10.8 Podkategorie 8",0,0.21,0,0,0,{"$f":"IF(data!$G$2=TRUE,(Rozpočet_stratpro!B32-Rozpočet_stratpro!E32),(Rozpočet_stratpro!D32-(Rozpočet_stratpro!E32+(E32*C32)))-F32)","v":0}]
["1.10.9 Podkategorie 9",0,0.21,0,0,0,{"$f":"IF(data!$G$2=TRUE,(Rozpočet_stratpro!B33-Rozpočet_stratpro!E33),(Rozpočet_stratpro!D33-(Rozpočet_stratpro!E33+(E33*C33)))-F33)","v":0}]
["1.10.10 Podkategorie 10",0,0.21,0,0,0,{"$f":"IF(data!$G$2=TRUE,(Rozpočet_stratpro!B34-Rozpočet_stratpro!E34),(Rozpočet_stratpro!D34-(Rozpočet_stratpro!E34+(E34*C34)))-F34)","v":0}]
["1.10.11 Podkategorie 11",0,0.21,0,0,0,{"$f":"IF(data!$G$2=TRUE,(Rozpočet_stratpro!B35-Rozpočet_stratpro!E35),(Rozpočet_stratpro!D35-(Rozpočet_stratpro!E35+(E35*C35)))-F35)","v":0}]
["1.10.12 Podkategorie 12",0,0.21,0,0,0,{"$f":"IF(data!$G$2=TRUE,(Rozpočet_stratpro!B36-Rozpočet_stratpro!E36),(Rozpočet_stratpro!D36-(Rozpočet_stratpro!E36+(E36*C36)))-F36)","v":0}]
["1.10.13 Podkategorie 13",0,0.21,0,0,0,{"$f":"IF(data!$G$2=TRUE,(Rozpočet_stratpro!B37-Rozpočet_stratpro!E37),(Rozpočet_stratpro!D37-(Rozpočet_stratpro!E37+(E37*C37)))-F37)","v":0}]
["1.10.14 Podkategorie 14",0,0.21,0,0,0,{"$f":"IF(data!$G$2=TRUE,(Rozpočet_stratpro!B38-Rozpočet_stratpro!E38),(Rozpočet_stratpro!D38-(Rozpočet_stratpro!E38+(E38*C38)))-F38)","v":0}]
["1.10.15 Podkategorie 15",0,0.21,0,0,0,{"$f":"IF(data!$G$2=TRUE,(Rozpočet_stratpro!B39-Rozpočet_stratpro!E39),(Rozpočet_stratpro!D39-(Rozpočet_stratpro!E39+(E39*C39)))-F39)","v":0}]
["1.11. Služby profesního vzdělávání",0,0.21,0,0,0,{"$f":"IF(data!$G$2=TRUE,(Rozpočet_stratpro!B40-Rozpočet_stratpro!E40),(Rozpočet_stratpro!D40-(Rozpočet_stratpro!E40+(E40*C40)))-F40)","v":0}]
["1.12. Leasing",0,0.21,0,0,0,{"$f":"IF(data!$G$2=TRUE,(Rozpočet_stratpro!B41-Rozpočet_stratpro!E41),(Rozpočet_stratpro!D41-(Rozpočet_stratpro!E41+(E41*C41)))-F41)","v":0}]
["1.13. Vícepráce",0,0.21,0,0,0,{"$f":"IF(data!$G$2=TRUE,(Rozpočet_stratpro!B42-Rozpočet_stratpro!E42),(Rozpočet_stratpro!D42-(Rozpočet_stratpro!E42+(E42*C42)))-F42)","v":0}]
["1.14. Pohledávky",0,0.21,0,0,0,{"$f":"IF(data!$G$2=TRUE,(Rozpočet_stratpro!B43-Rozpočet_stratpro!E43),(Rozpočet_stratpro!D43-(Rozpočet_stratpro!E43+(E43*C43)))-F43)","v":0}]
["1.15. Vyvolané investice",0,0.21,0,0,0,{"$f":"IF(data!$G$2=TRUE,(Rozpočet_stratpro!B44-Rozpočet_stratpro!E44),(Rozpočet_stratpro!D44-(Rozpočet_stratpro!E44+(E44*C44)))-F44)","v":0}]
["1.16. Přímá podpora cílových skupin",{"$f":"SUM(B46:B50)","v":0},null,{"$f":"SUM(D46:D50)","v":0},{"$f":"SUM(E46:E50)","v":0},{"$f":"SUM(F46:F50)","v":0},{"$f":"SUM(G46:G50)","v":0}]
["1.16.1 Mzdové příspěvky za dobu účastii zaměstnance na aktivitách profesního vzdělávání akcích",0,0.21,0,0,0,{"$f":"IF(data!$G$2=TRUE,(Rozpočet_stratpro!B46-Rozpočet_stratpro!E46),(Rozpočet_stratpro!D46-(Rozpočet_stratpro!E46+(E46*C46)))-F46)","v":0}]
["1.16.2 Cestovní náhrady, resp. jízdné (cestovné), ubytování a stravné cílových skupin",0,0.21,0,0,0,{"$f":"IF(data!$G$2=TRUE,(Rozpočet_stratpro!B47-Rozpočet_stratpro!E47),(Rozpočet_stratpro!D47-(Rozpočet_stratpro!E47+(E47*C47)))-F47)","v":0}]
["1.16.3 Příspěvek na péči o dítě a další závislé osoby",0,0.21,0,0,0,{"$f":"IF(data!$G$2=TRUE,(Rozpočet_stratpro!B48-Rozpočet_stratpro!E48),(Rozpočet_stratpro!D48-(Rozpočet_stratpro!E48+(E48*C48)))-F48)","v":0}]
["1.16.4 Jiné nezbytné náklady cílové skupiny ",0,0.21,0,0,0,{"$f":"IF(data!$G$2=TRUE,(Rozpočet_stratpro!B49-Rozpočet_stratpro!E49),(Rozpočet_stratpro!D49-(Rozpočet_stratpro!E49+(E49*C49)))-F49)","v":0}]
["1.16.5 Další náklady (pouze Úřad Práce)",0,0.21,0,0,0,{"$f":"IF(data!$G$2=TRUE,(Rozpočet_stratpro!B50-Rozpočet_stratpro!E50),(Rozpočet_stratpro!D50-(Rozpočet_stratpro!E50+(E50*C50)))-F50)","v":0}]
["1.17. Věcný příspěvek",0,0.21,0,0,0,{"$f":"IF(data!$G$2=TRUE,(Rozpočet_stratpro!B51-Rozpočet_stratpro!E51),(Rozpočet_stratpro!D51-(Rozpočet_stratpro!E51+(E51*C51)))-F51)","v":0}]
["1.18. Závěrečná evaluace",{"$f":"B53+B54","v":0},null,{"$f":"SUM(D53:D54)","v":0},{"$f":"E53+E54","v":0},{"$f":"F53+F54","v":0},{"$f":"G53+G54","v":0}]
["1.18.1 Povinná část závěrečné evaluace",0,0.21,0,0,0,{"$f":"IF(data!$G$2=TRUE,(Rozpočet_stratpro!B53-Rozpočet_stratpro!E53),(Rozpočet_stratpro!D53-(Rozpočet_stratpro!E53+(E53*C53))))","v":0}]
["1.18.2 Nepovinná část závěrečné evaluace",0,0.21,0,0,0,{"$f":"IF(data!$G$2=TRUE,(Rozpočet_stratpro!B54-Rozpočet_stratpro!E54),(Rozpočet_stratpro!D54-(Rozpočet_stratpro!E54+(E54*C54)))-F54)","v":0}]
["1.19. Nezpůsobilé investiční výdaje",0,0.21,0,{"$f":"D55","v":0},0,0]
["2. Neinvestiční výdaje",{"$f":"SUM(B57,B58,B61,B62,B63,B64,B65,B68,B69,B70,B86:B91,B98,B101,B97)","v":5892420.6735529415},null,{"$f":"SUM(D57,D58,D61:D65,D68:D70,D86:D91,,D98,D101,D97)","v":5997420.6735529415},{"$f":"SUM(E57,E58,E61:E65,E68:E70,E86:E91,,E98,E101,E97)","v":0},{"$f":"SUM(F57,F58,F61:F65,F68:F70,F86:F91,F98,F101,F97)","v":0},{"$f":"SUM(G57,G58,G61:G65,G68:G70,G86:G91,G98,G97)","v":5997420.6735529415}]
["2.1. Pozemky (nákup)",0,0.21,{"$f":"B57+(B57*C57)","v":0},0,0,{"$f":"IF(data!$G$2=TRUE,(Rozpočet_stratpro!B57-Rozpočet_stratpro!E57),(Rozpočet_stratpro!D57-(Rozpočet_stratpro!E57+(E57*C57)))-F57)","v":0}]
["2.2. Budovy, stavby",{"$f":"SUM(B59:B60)","v":0},null,{"$f":"SUM(D59:D60)","v":0},{"$f":"SUM(E59:E60)","v":0},{"$f":"SUM(F59:F60)","v":0},{"$f":"G59+G60","v":0}]
["2.2.1 Stavby pořízené formou výstavby a stavební úpravy",0,0.21,{"$f":"B59+(B59*C59)","v":0},0,0,{"$f":"IF(data!$G$2=TRUE,(Rozpočet_stratpro!B59-Rozpočet_stratpro!E59),(Rozpočet_stratpro!D59-(Rozpočet_stratpro!E59+(E59*C59)))-F59)","v":0}]
["2.2.2 Pořízení nemovitosti (budovy) ",0,0.21,0,0,0,{"$f":"IF(data!$G$2=TRUE,(Rozpočet_stratpro!B60-Rozpočet_stratpro!E60),(Rozpočet_stratpro!D60-(Rozpočet_stratpro!E60+(E60*C60)))-F60)","v":0}]
["2.3. Hmotný movitý majetek",0,0.21,0,0,0,{"$f":"IF(data!$G$2=TRUE,(Rozpočet_stratpro!B61-Rozpočet_stratpro!E61),(Rozpočet_stratpro!D61-(Rozpočet_stratpro!E61+(E61*C61)))-F61)","v":0}]
["2.4. Materiál",0,0.21,0,0,0,{"$f":"IF(data!$G$2=TRUE,(Rozpočet_stratpro!B62-Rozpočet_stratpro!E62),(Rozpočet_stratpro!D62-(Rozpočet_stratpro!E62+(E62*C62)))-F62)","v":0}]
["2.5. Nehmotný majetek",0,0.21,0,0,0,{"$f":"IF(data!$G$2=TRUE,(Rozpočet_stratpro!B63-Rozpočet_stratpro!E63),(Rozpočet_stratpro!D63-(Rozpočet_stratpro!E63+(E63*C63)))-F63)","v":0}]
["2.6. Majetek pořízený vlastní činností (aktivací)",0,0.21,0,0,0,{"$f":"IF(data!$G$2=TRUE,(Rozpočet_stratpro!B64-Rozpočet_stratpro!E64),(Rozpočet_stratpro!D64-(Rozpočet_stratpro!E64+(E64*C64)))-F64)","v":0}]
["2.7. Osobní náklady",{"$f":"SUM(B66:B67)","v":5392420.6735529415},null,{"$f":"SUM(D66:D67)","v":5392420.6735529415},{"$f":"SUM(E66:E67)","v":0},{"$f":"SUM(F66:F67)","v":0},{"$f":"G66+G67","v":5392420.6735529415}]
["2.7.1 Hlavní administrativní tým",{"$f":"'7.Osobní náklady'!H11","v":2753250.6735529415},null,2753250.6735529415,0,0,{"$f":"IF(data!$G$2=TRUE,(Rozpočet_stratpro!B66-Rozpočet_stratpro!E66),(Rozpočet_stratpro!D66-(Rozpočet_stratpro!E66+(E66*C66))))","v":2753250.6735529415}]
["2.7.2 Odborný tým",{"$f":"'7.Osobní náklady'!H58","v":2639170},null,2639170,0,0,{"$f":"IF(data!$G$2=TRUE,(Rozpočet_stratpro!B67-Rozpočet_stratpro!E67),(Rozpočet_stratpro!D67-(Rozpočet_stratpro!E67+(E67*C67))))","v":2639170}]
["2.8. Autorské příspěvky",0,0.21,0,0,0,{"$f":"IF(data!$G$2=TRUE,(Rozpočet_stratpro!B68-Rozpočet_stratpro!E68),(Rozpočet_stratpro!D68-(Rozpočet_stratpro!E68+(E68*C68)))-F68)","v":0}]
["2.9. Cestovní náhrady (odborný tým)",0,0.21,0,0,0,{"$f":"IF(data!$G$2=TRUE,(Rozpočet_stratpro!B69-Rozpočet_stratpro!E69),(Rozpočet_stratpro!D69-(Rozpočet_stratpro!E69+(E69*C69)))-F69)","v":0}]
["2.10. Služby",{"$f":"SUM(B71:B85)","v":0},null,{"$f":"SUM(D71:D85)","v":0},{"$f":"SUM(E71:E85)","v":0},{"$f":"SUM(F71:F85)","v":0},{"$f":"SUM(G71:G85)","v":0}]
["2.10.1 Podkategorie 1",0,0.21,0,0,0,{"$f":"IF(data!$G$2=TRUE,(Rozpočet_stratpro!B71-Rozpočet_stratpro!E71),(Rozpočet_stratpro!D71-(Rozpočet_stratpro!E71+(E71*C71)))-F71)","v":0}]
["2.10.2 Podkategorie 2",0,0.21,0,0,0,{"$f":"IF(data!$G$2=TRUE,(Rozpočet_stratpro!B72-Rozpočet_stratpro!E72),(Rozpočet_stratpro!D72-(Rozpočet_stratpro!E72+(E72*C72)))-F72)","v":0}]
["2.10.3 Podkategorie 3",0,0.21,0,0,0,{"$f":"IF(data!$G$2=TRUE,(Rozpočet_stratpro!B73-Rozpočet_stratpro!E73),(Rozpočet_stratpro!D73-(Rozpočet_stratpro!E73+(E73*C73)))-F73)","v":0}]
["2.10.4 Podkategorie 4",0,0.21,0,0,0,{"$f":"IF(data!$G$2=TRUE,(Rozpočet_stratpro!B74-Rozpočet_stratpro!E74),(Rozpočet_stratpro!D74-(Rozpočet_stratpro!E74+(E74*C74)))-F74)","v":0}]
["2.10.5 Podkategorie 5",0,0.21,0,0,0,{"$f":"IF(data!$G$2=TRUE,(Rozpočet_stratpro!B75-Rozpočet_stratpro!E75),(Rozpočet_stratpro!D75-(Rozpočet_stratpro!E75+(E75*C75)))-F75)","v":0}]
["2.10.6 Podkategorie 6",0,0.21,0,0,0,{"$f":"IF(data!$G$2=TRUE,(Rozpočet_stratpro!B76-Rozpočet_stratpro!E76),(Rozpočet_stratpro!D76-(Rozpočet_stratpro!E76+(E76*C76)))-F76)","v":0}]
["2.10.7 Podkategorie 7",0,0.21,0,0,0,{"$f":"IF(data!$G$2=TRUE,(Rozpočet_stratpro!B77-Rozpočet_stratpro!E77),(Rozpočet_stratpro!D77-(Rozpočet_stratpro!E77+(E77*C77)))-F77)","v":0}]
["2.10.8 Podkategorie 8",0,0.21,0,0,0,{"$f":"IF(data!$G$2=TRUE,(Rozpočet_stratpro!B78-Rozpočet_stratpro!E78),(Rozpočet_stratpro!D78-(Rozpočet_stratpro!E78+(E78*C78)))-F78)","v":0}]
["2.10.9 Podkategorie 9",0,0.21,0,0,0,{"$f":"IF(data!$G$2=TRUE,(Rozpočet_stratpro!B79-Rozpočet_stratpro!E79),(Rozpočet_stratpro!D79-(Rozpočet_stratpro!E79+(E79*C79)))-F79)","v":0}]
["2.10.10 Podkategorie 10",0,0.21,0,0,0,{"$f":"IF(data!$G$2=TRUE,(Rozpočet_stratpro!B80-Rozpočet_stratpro!E80),(Rozpočet_stratpro!D80-(Rozpočet_stratpro!E80+(E80*C80)))-F80)","v":0}]
["2.10.11 Podkategorie 11",0,0.21,0,0,0,{"$f":"IF(data!$G$2=TRUE,(Rozpočet_stratpro!B81-Rozpočet_stratpro!E81),(Rozpočet_stratpro!D81-(Rozpočet_stratpro!E81+(E81*C81)))-F81)","v":0}]
["2.10.12 Podkategorie 12",0,0.21,0,0,0,{"$f":"IF(data!$G$2=TRUE,(Rozpočet_stratpro!B82-Rozpočet_stratpro!E82),(Rozpočet_stratpro!D82-(Rozpočet_stratpro!E82+(E82*C82)))-F82)","v":0}]
["2.10.13 Podkategorie 13",0,0.21,0,0,0,{"$f":"IF(data!$G$2=TRUE,(Rozpočet_stratpro!B83-Rozpočet_stratpro!E83),(Rozpočet_stratpro!D83-(Rozpočet_stratpro!E83+(E83*C83)))-F83)","v":0}]
["2.10.14 Podkategorie 14",0,0.21,0,0,0,{"$f":"IF(data!$G$2=TRUE,(Rozpočet_stratpro!B84-Rozpočet_stratpro!E84),(Rozpočet_stratpro!D84-(Rozpočet_stratpro!E84+(E84*C84)))-F84)","v":0}]
["2.10.15 Podkategorie 15",0,0.21,0,0,0,{"$f":"IF(data!$G$2=TRUE,(Rozpočet_stratpro!B85-Rozpočet_stratpro!E85),(Rozpočet_stratpro!D85-(Rozpočet_stratpro!E85+(E85*C85)))-F85)","v":0}]
["2.11. Služby profesního vzdělávání",0,0.21,0,0,0,{"$f":"IF(data!$G$2=TRUE,(Rozpočet_stratpro!B86-Rozpočet_stratpro!E86),(Rozpočet_stratpro!D86-(Rozpočet_stratpro!E86+(E86*C86)))-F86)","v":0}]
["2.12. Leasing",0,0.21,0,0,0,{"$f":"IF(data!$G$2=TRUE,(Rozpočet_stratpro!B87-Rozpočet_stratpro!E87),(Rozpočet_stratpro!D87-(Rozpočet_stratpro!E87+(E87*C87)))-F87)","v":0}]
["2.13. Vícepráce",0,0.21,0,0,0,{"$f":"IF(data!$G$2=TRUE,(Rozpočet_stratpro!B88-Rozpočet_stratpro!E88),(Rozpočet_stratpro!D88-(Rozpočet_stratpro!E88+(E88*C88)))-F88)","v":0}]
["2.14. Pohledávky",0,0.21,0,0,0,{"$f":"IF(data!$G$2=TRUE,(Rozpočet_stratpro!B89-Rozpočet_stratpro!E89),(Rozpočet_stratpro!D89-(Rozpočet_stratpro!E89+(E89*C89)))-F89)","v":0}]
["2.15. Vyvolané investice",0,0.21,0,0,0,{"$f":"IF(data!$G$2=TRUE,(Rozpočet_stratpro!B90-Rozpočet_stratpro!E90),(Rozpočet_stratpro!D90-(Rozpočet_stratpro!E90+(E90*C90)))-F90)","v":0}]
["2.16. Přímá podpora cílových skupin",{"$f":"SUM(B92:B96)","v":0},null,{"$f":"SUM(D92:D96)","v":0},{"$f":"SUM(E92:E96)","v":0},{"$f":"SUM(F92:F96)","v":0},{"$f":"SUM(G92:G96)","v":0}]
["2.16.1 Mzdové příspěvky za dobu účastii zaměstnance na aktivitách profesního vzdělávání akcích",0,0.21,0,0,0,{"$f":"IF(data!$G$2=TRUE,(Rozpočet_stratpro!B92-Rozpočet_stratpro!E92),(Rozpočet_stratpro!D92-(Rozpočet_stratpro!E92+(E92*C92)))-F92)","v":0}]
["2.16.2 Cestovní náhrady, resp. jízdné (cestovné), ubytování a stravné cílových skupin",0,0.21,0,0,0,{"$f":"IF(data!$G$2=TRUE,(Rozpočet_stratpro!B93-Rozpočet_stratpro!E93),(Rozpočet_stratpro!D93-(Rozpočet_stratpro!E93+(E93*C93)))-F93)","v":0}]
["2.16.3 Příspěvek na péči o dítě a další závislé osoby",0,0.21,0,0,0,{"$f":"IF(data!$G$2=TRUE,(Rozpočet_stratpro!B94-Rozpočet_stratpro!E94),(Rozpočet_stratpro!D94-(Rozpočet_stratpro!E94+(E94*C94)))-F94)","v":0}]
["2.16.4 Jiné nezbytné náklady cílové skupiny ",0,0.21,0,0,0,{"$f":"IF(data!$G$2=TRUE,(Rozpočet_stratpro!B95-Rozpočet_stratpro!E95),(Rozpočet_stratpro!D95-(Rozpočet_stratpro!E95+(E95*C95)))-F95)","v":0}]
["2.16.5 Další náklady (pouze Úřad Práce)",0,0.21,0,0,0,{"$f":"IF(data!$G$2=TRUE,(Rozpočet_stratpro!B96-Rozpočet_stratpro!E96),(Rozpočet_stratpro!D96-(Rozpočet_stratpro!E96+(E96*C96)))-F96)","v":0}]
["2.17. Věcný příspěvek",0,0.21,0,0,0,{"$f":"IF(data!$G$2=TRUE,(Rozpočet_stratpro!B97-Rozpočet_stratpro!E97),(Rozpočet_stratpro!D97-(Rozpočet_stratpro!E97+(E97*C97)))-F97)","v":0}]
["2.18. Závěrečná evaluace",{"$f":"SUM(B99:B100)","v":500000},null,{"$f":"SUM(D99:D100)","v":605000},{"$f":"E99+E100","v":0},{"$f":"F99+F100","v":0},{"$f":"G99+G100","v":605000}]
["2.18.1 Povinná část závěrečné evaluace",500000,0.21,605000,0,0,{"$f":"IF(data!$G$2=TRUE,(Rozpočet_stratpro!B99-Rozpočet_stratpro!E99),(Rozpočet_stratpro!D99-(Rozpočet_stratpro!E99+(E99*C99)))-F99)","v":605000}]
["2.18.2 Nepovinná část závěrečné evaluace",0,0.21,0,0,0,{"$f":"IF(data!$G$2=TRUE,(Rozpočet_stratpro!B100-Rozpočet_stratpro!E100),(Rozpočet_stratpro!D100-(Rozpočet_stratpro!E100+(E100*C100)))-F100)","v":0}]
["2.19. Nezpůsobilé neinvestiční výdaje",0,0.21,0,{"$f":"D101","v":0},0,0]
["Celkem investiční a neinvestiční výdaje",{"$f":"SUM(B56,B10)","v":5892420.6735529415},null,{"$f":"SUM(D56,D10)","v":5997420.6735529415},{"$f":"SUM(E56,E10)","v":0},{"$f":"SUM(F56,F10)","v":0},{"$f":"SUM(G10,G56)","v":5997420.6735529415}]
["Paušál (nepřímé výdaje) ",null,null,null,null,null,{"$f":"(G102)*B103","v":0}]
["Celkem",null,null,null,null,null,{"$f":"SUM(G102:G103)","v":5997420.6735529415}]
[]
["Celkové výdaje projektu",{"$f":"D102+G103","v":5997420.6735529415},null,"Komentář k nezpůsobilým výdajům:"]
["Celkové způsobilé výdaje projektu",{"$f":"G104","v":5997420.6735529415}]
["Celkové nezpůsobilé výdaje projektu",{"$f":"B106-B107","v":0}]
["Celkové nezpůsobilé výdaje projektu - investiční",{"$f":"D10-G10","v":0}]
["Celkové nezpůsobilé výdaje projektu - neinvestiční",{"$f":"D56-G56","v":0}]
[]
[]
[]
[]
[]
[]
[]
[]
[]
[]
["Verze 04"]

{"sheet":"X.vzor","index":1,"n_rows":41,"n_cols":11,"rows_kept":41,"cut":false,"hidden":false,"merged":[[41,7,43,10],[1,0,1,4],[1,5,6,7],[9,3,10,4],[9,6,10,6],[24,3,24,4]]}
["Kumulativní rozpočet projektu"]
["Instrukce:",null,null,null,null,"Editujte pouze zelená pole. Rozepiště položky do úrovně jednotek vyšších než 40 000 Kč. V případě položek, jejichž kumulativní náklad bude nižší, uveďte jako jednotku \"celkem\". Stejné položky úvadějte do jednoho řádku s vymezením počtu jednotek. Je možné přidávat libovolné množství řádků. Tento list je příkladový a je třeba jej kopírovat pro využití na rozepsání ostatních polože z prvního listu (viz příklad 1. - Pozemky)."]
[]
[]
[]
[]
[]
[]
["Název položky ","Popis vazby na aktivitu(y) projektu","Přiřazení subjektu: žadatel, anebo název partnera s finančním příspěvkem","Měrná jednotka (kus, den, apod.)","Počet jednotek","Celková cena bez DPH ","Sazba DPH","Celková cena s DPH","Nezpůsobilá část celkových výdajů stanovená žadatelem (bez DPH)","Nezpůsobilá část DPH","Způsobilé výdaje po zohlednění způsobilosti DPH"]
["1. ",null,null,null,null,{"$f":"SUM(F11,F25)","v":0},null,{"$f":"SUM(H25,H11)","v":0},{"$f":"SUM(I25,I11)","v":0},{"$f":"SUM(J25,J11)","v":0},{"$f":"SUM(K25,K11)","v":0}]
["1.1 Investiční výdaje",null,null,null,null,{"$f":"SUM(F12:F24)","v":0},null,{"$f":"SUM(H12:H24)","v":0},{"$f":"SUM(I12:I24)","v":0},{"$f":"SUM(J12:J24)","v":0},{"$f":"SUM(K12:K24)","v":0}]
[null,null,null,null,null,0,0.21,{"$f":"F12+(F12*G12)","v":0},0,0,{"$f":"IF(data!$G$2=TRUE,(X.vzor!F12-X.vzor!I12),(X.vzor!H12-(X.vzor!I12+(I12*G12)))-J12)","v":0}]
[null,null,null,null,null,0,0.21,{"$f":"F13+(F13*G13)","v":0},0,0,{"$f":"IF(data!$G$2=TRUE,(X.vzor!F13-X.vzor!I13),(X.vzor!H13-(X.vzor!I13+(I13*G13)))-J13)","v":0}]
[null,null,null,null,null,0,0.21,0,0,0,{"$f":"IF(data!$G$2=TRUE,(X.vzor!F14-X.vzor!I14),(X.vzor!H14-(X.vzor!I14+(I14*G14)))-J14)","v":0}]
[null,null,null,null,null,0,0.21,0,0,0,{"$f":"IF(data!$G$2=TRUE,(X.vzor!F15-X.vzor!I15),(X.vzor!H15-(X.vzor!I15+(I15*G15)))-J15)","v":0}]
[null,null,null,null,null,0,0.21,0,0,0,{"$f":"IF(data!$G$2=TRUE,(X.vzor!F16-X.vzor!I16),(X.vzor!H16-(X.vzor!I16+(I16*G16)))-J16)","v":0}]
[null,null,null,null,null,0,0.21,0,0,0,{"$f":"IF(data!$G$2=TRUE,(X.vzor!F17-X.vzor!I17),(X.vzor!H17-(X.vzor!I17+(I17*G17)))-J17)","v":0}]
[null,null,null,null,null,0,0.21,0,0,0,{"$f":"IF(data!$G$2=TRUE,(X.vzor!F18-X.vzor!I18),(X.vzor!H18-(X.vzor!I18+(I18*G18)))-J18)","v":0}]
[null,null,null,null,null,0,0.21,0,0,0,{"$f":"IF(data!$G$2=TRUE,(X.vzor!F19-X.vzor!I19),(X.vzor!H19-(X.vzor!I19+(I19*G19)))-J19)","v":0}]
[null,null,null,null,null,0,0.21,0,0,0,{"$f":"IF(data!$G$2=TRUE,(X.vzor!F20-X.vzor!I20),(X.vzor!H20-(X.vzor!I20+(I20*G20)))-J20)","v":0}]
[null,null,null,null,null,0,0.21,0,0,0,{"$f":"IF(data!$G$2=TRUE,(X.vzor!F21-X.vzor!I21),(X.vzor!H21-(X.vzor!I21+(I21*G21)))-J21)","v":0}]
[null,null,null,null,null,0,0.21,0,0,0,{"$f":"IF(data!$G$2=TRUE,(X.vzor!F22-X.vzor!I22),(X.vzor!H22-(X.vzor!I22+(I22*G22)))-J22)","v":0}]
[null,null,null,null,null,0,0.21,0,0,0,{"$f":"IF(data!$G$2=TRUE,(X.vzor!F23-X.vzor!I23),(X.vzor!H23-(X.vzor!I23+(I23*G23)))-J23)","v":0}]
[null,null,null,null,null,0,0.21,0,0,0,{"$f":"IF(data!$G$2=TRUE,(X.vzor!F24-X.vzor!I24),(X.vzor!H24-(X.vzor!I24+(I24*G24)))-J24)","v":0}]
["1.2 Neinvestiční výdaje",null,null,null,null,{"$f":"SUM(F26:F38)","v":0},null,{"$f":"SUM(H26:H38)","v":0},{"$f":"SUM(I26:I38)","v":0},{"$f":"SUM(J26:J38)","v":0},{"$f":"SUM(K26:K38)","v":0}]
[null,null,null,null,null,0,0.21,0,0,0,{"$f":"IF(data!$G$2=TRUE,(X.vzor!F26-X.vzor!I26),(X.vzor!H26-(X.vzor!I26+(I26*G26)))-J26)","v":0}]
[null,null,null,null,null,0,0.21,0,0,0,{"$f":"IF(data!$G$2=TRUE,(X.vzor!F27-X.vzor!I27),(X.vzor!H27-(X.vzor!I27+(I27*G27)))-J27)","v":0}]
[null,null,null,null,null,0,0.21,0,0,0,{"$f":"IF(data!$G$2=TRUE,(X.vzor!F28-X.vzor!I28),(X.vzor!H28-(X.vzor!I28+(I28*G28)))-J28)","v":0}]
[null,null,null,null,null,0,0.21,0,0,0,{"$f":"IF(data!$G$2=TRUE,(X.vzor!F29-X.vzor!I29),(X.vzor!H29-(X.vzor!I29+(I29*G29)))-J29)","v":0}]
[null,null,null,null,null,0,0.21,0,0,0,{"$f":"IF(data!$G$2=TRUE,(X.vzor!F30-X.vzor!I30),(X.vzor!H30-(X.vzor!I30+(I30*G30)))-J30)","v":0}]
[null,null,null,null,null,0,0.21,0,0,0,{"$f":"IF(data!$G$2=TRUE,(X.vzor!F31-X.vzor!I31),(X.vzor!H31-(X.vzor!I31+(I31*G31)))-J31)","v":0}]
[null,null,null,null,null,0,0.21,0,0,0,{"$f":"IF(data!$G$2=TRUE,(X.vzor!F32-X.vzor!I32),(X.vzor!H32-(X.vzor!I32+(I32*G32)))-J32)","v":0}]
[null,null,null,null,null,0,0.21,0,0,0,{"$f":"IF(data!$G$2=TRUE,(X.vzor!F33-X.vzor!I33),(X.vzor!H33-(X.vzor!I33+(I33*G33)))-J33)","v":0}]
[null,null,null,null,null,0,0.21,0,0,0,{"$f":"IF(data!$G$2=TRUE,(X.vzor!F34-X.vzor!I34),(X.vzor!H34-(X.vzor!I34+(I34*G34)))-J34)","v":0}]
[null,null,null,null,null,0,0.21,0,0,0,{"$f":"IF(data!$G$2=TRUE,(X.vzor!F35-X.vzor!I35),(X.vzor!H35-(X.vzor!I35+(I35*G35)))-J35)","v":0}]
[null,null,null,null,null,0,0.21,0,0,0,{"$f":"IF(data!$G$2=TRUE,(X.vzor!F36-X.vzor!I36),(X.vzor!H36-(X.vzor!I36+(I36*G36)))-J36)","v":0}]
[null,null,null,null,null,0,0.21,0,0,0,{"$f":"IF(data!$G$2=TRUE,(X.vzor!F37-X.vzor!I37),(X.vzor!H37-(X.vzor!I37+(I37*G37)))-J37)","v":0}]
[null,null,null,null,null,0,0.21,0,0,0,{"$f":"IF(data!$G$2=TRUE,(X.vzor!F38-X.vzor!I38),(X.vzor!H38-(X.vzor!I38+(I38*G38)))-J38)","v":0}]
["Celkem",null,null,null,null,{"$f":"SUM(F25+F11)","v":0},null,{"$f":"SUM(H25+H11)","v":0},{"$f":"SUM(I25+I11)","v":0},{"$f":"SUM(J25+J11)","v":0},{"$f":"SUM(K25+K11)","v":0}]
[]
[null,null,null,null,null,null,null,"Komentář k nezpůsobilým výdajům:"]

{"sheet":"1.Pozemky","index":2,"n_rows":41,"n_cols":11,"rows_kept":41,"cut":false,"hidden":false,"merged":[[41,7,43,10],[1,0,1,4],[9,3,10,4],[9,6,10,6],[24,3,24,4],[1,5,6,8]]}
["Kumulativní rozpočet projektu"]
["Instrukce:",null,null,null,null,"Toto je příkladový list k rozepsání položky 1.1/2.1 Pozemky. Editujte pouze zelená pole. Rozepiště položky do úrovně jednotek vyšších než 40 000 Kč. V případě položek, jejichž kumulativní náklad bude nižší, uveďte jako jednotku \"celkem\". Stejné položky úvadějte do jednoho řádku s vymezením počtu jednotek. Je možné přidávat libovolné množství řádků. Příklad kurzívou."]
[]
[]
[]
[]
[]
[]
["Název položky ","Popis vazby na aktivitu(y) projektu","Přiřazení subjektu: žadatel, anebo název partnera s finančním příspěvkem","Měrná jednotka (kus, den, apod.)","Počet jednotek","Celková cena bez DPH ","Sazba DPH","Celková cena s DPH","Nezpůsobilá část celkových výdajů stanovená žadatelem (bez DPH)","Nezpůsobilá část DPH","Způsobilé výdaje po zohlednění způsobilosti DPH"]
["1. Pozemky",null,null,null,null,{"$f":"SUM(F11,F25)","v":2000000},null,{"$f":"SUM(H25,H11)","v":2420000},{"$f":"SUM(I25,I11)","v":0},{"$f":"SUM(J25,J11)","v":0},{"$f":"SUM(K25,K11)","v":2420000}]
["1.1 Pozemky jako investiční výdaj",null,null,null,null,{"$f":"SUM(F12:F24)","v":2000000},null,{"$f":"SUM(H12:H24)","v":2420000},{"$f":"SUM(I12:I24)","v":0},{"$f":"SUM(J12:J24)","v":0},{"$f":"SUM(K12:K24)","v":2420000}]
["Vzor: Parcela p.č. 123/12 v k.ú. Horní Lhota","Aktivita 1","Partner 1","kus",1,2000000,0.21,{"$f":"F12+(F12*G12)","v":2420000},0,0,{"$f":"IF(data!$G$2=TRUE,('1.Pozemky'!F12-'1.Pozemky'!I12),('1.Pozemky'!H12-('1.Pozemky'!I12+(I12*G12))))","v":2420000}]
[null,null,null,null,null,0,0.21,{"$f":"F13+(F13*G13)","v":0},0,0,{"$f":"IF(data!$G$2=TRUE,('1.Pozemky'!F13-'1.Pozemky'!I13),('1.Pozemky'!H13-('1.Pozemky'!I13+(I13*G13)))-J13)","v":0}]
[null,null,null,null,null,0,0.21,0,0,0,{"$f":"IF(data!$G$2=TRUE,('1.Pozemky'!F14-'1.Pozemky'!I14),('1.Pozemky'!H14-('1.Pozemky'!I14+(I14*G14)))-J14)","v":0}]
[null,null,null,null,null,0,0.21,0,0,0,{"$f":"IF(data!$G$2=TRUE,('1.Pozemky'!F15-'1.Pozemky'!I15),('1.Pozemky'!H15-('1.Pozemky'!I15+(I15*G15)))-J15)","v":0}]
[null,null,null,null,null,0,0.21,0,0,0,{"$f":"IF(data!$G$2=TRUE,('1.Pozemky'!F16-'1.Pozemky'!I16),('1.Pozemky'!H16-('1.Pozemky'!I16+(I16*G16)))-J16)","v":0}]
[null,null,null,null,null,0,0.21,0,0,0,{"$f":"IF(data!$G$2=TRUE,('1.Pozemky'!F17-'1.Pozemky'!I17),('1.Pozemky'!H17-('1.Pozemky'!I17+(I17*G17)))-J17)","v":0}]
[null,null,null,null,null,0,0.21,0,0,0,{"$f":"IF(data!$G$2=TRUE,('1.Pozemky'!F18-'1.Pozemky'!I18),('1.Pozemky'!H18-('1.Pozemky'!I18+(I18*G18)))-J18)","v":0}]
[null,null,null,null,null,0,0.21,0,0,0,{"$f":"IF(data!$G$2=TRUE,('1.Pozemky'!F19-'1.Pozemky'!I19),('1.Pozemky'!H19-('1.Pozemky'!I19+(I19*G19)))-J19)","v":0}]
[null,null,null,null,null,0,0.21,0,0,0,{"$f":"IF(data!$G$2=TRUE,('1.Pozemky'!F20-'1.Pozemky'!I20),('1.Pozemky'!H20-('1.Pozemky'!I20+(I20*G20)))-J20)","v":0}]
[null,null,null,null,null,0,0.21,0,0,0,{"$f":"IF(data!$G$2=TRUE,('1.Pozemky'!F21-'1.Pozemky'!I21),('1.Pozemky'!H21-('1.Pozemky'!I21+(I21*G21)))-J21)","v":0}]
[null,null,null,null,null,0,0.21,0,0,0,{"$f":"IF(data!$G$2=TRUE,('1.Pozemky'!F22-'1.Pozemky'!I22),('1.Pozemky'!H22-('1.Pozemky'!I22+(I22*G22)))-J22)","v":0}]
[null,null,null,null,null,0,0.21,0,0,0,{"$f":"IF(data!$G$2=TRUE,('1.Pozemky'!F23-'1.Pozemky'!I23),('1.Pozemky'!H23-('1.Pozemky'!I23+(I23*G23)))-J23)","v":0}]
[null,null,null,null,null,0,0.21,0,0,0,{"$f":"IF(data!$G$2=TRUE,('1.Pozemky'!F24-'1.Pozemky'!I24),('1.Pozemky'!H24-('1.Pozemky'!I24+(I24*G24)))-J24)","v":0}]
["1.2 Pozemky jako neinvestiční výdaj",null,null,null,null,{"$f":"SUM(F26:F38)","v":0},null,{"$f":"SUM(H26:H38)","v":0},{"$f":"SUM(I26:I38)","v":0},{"$f":"SUM(J26:J38)","v":0},{"$f":"SUM(K26:K38)","v":0}]
[null,null,null,null,null,0,0.21,0,0,0,{"$f":"IF(data!$G$2=TRUE,('1.Pozemky'!F26-'1.Pozemky'!I26),('1.Pozemky'!H26-('1.Pozemky'!I26+(I26*G26)))-J26)","v":0}]
[null,null,null,null,null,0,0.21,0,0,0,{"$f":"IF(data!$G$2=TRUE,('1.Pozemky'!F27-'1.Pozemky'!I27),('1.Pozemky'!H27-('1.Pozemky'!I27+(I27*G27)))-J27)","v":0}]
[null,null,null,null,null,0,0.21,0,0,0,{"$f":"IF(data!$G$2=TRUE,('1.Pozemky'!F28-'1.Pozemky'!I28),('1.Pozemky'!H28-('1.Pozemky'!I28+(I28*G28)))-J28)","v":0}]
[null,null,null,null,null,0,0.21,0,0,0,{"$f":"IF(data!$G$2=TRUE,('1.Pozemky'!F29-'1.Pozemky'!I29),('1.Pozemky'!H29-('1.Pozemky'!I29+(I29*G29)))-J29)","v":0}]
[null,null,null,null,null,0,0.21,0,0,0,{"$f":"IF(data!$G$2=TRUE,('1.Pozemky'!F30-'1.Pozemky'!I30),('1.Pozemky'!H30-('1.Pozemky'!I30+(I30*G30)))-J30)","v":0}]
[null,null,null,null,null,0,0.21,0,0,0,{"$f":"IF(data!$G$2=TRUE,('1.Pozemky'!F31-'1.Pozemky'!I31),('1.Pozemky'!H31-('1.Pozemky'!I31+(I31*G31)))-J31)","v":0}]
[null,null,null,null,null,0,0.21,0,0,0,{"$f":"IF(data!$G$2=TRUE,('1.Pozemky'!F32-'1.Pozemky'!I32),('1.Pozemky'!H32-('1.Pozemky'!I32+(I32*G32)))-J32)","v":0}]
[null,null,null,null,null,0,0.21,0,0,0,{"$f":"IF(data!$G$2=TRUE,('1.Pozemky'!F33-'1.Pozemky'!I33),('1.Pozemky'!H33-('1.Pozemky'!I33+(I33*G33)))-J33)","v":0}]
[null,null,null,null,null,0,0.21,0,0,0,{"$f":"IF(data!$G$2=TRUE,('1.Pozemky'!F34-'1.Pozemky'!I34),('1.Pozemky'!H34-('1.Pozemky'!I34+(I34*G34)))-J34)","v":0}]
[null,null,null,null,null,0,0.21,0,0,0,{"$f":"IF(data!$G$2=TRUE,('1.Pozemky'!F35-'1.Pozemky'!I35),('1.Pozemky'!H35-('1.Pozemky'!I35+(I35*G35)))-J35)","v":0}]
[null,null,null,null,null,0,0.21,0,0,0,{"$f":"IF(data!$G$2=TRUE,('1.Pozemky'!F36-'1.Pozemky'!I36),('1.Pozemky'!H36-('1.Pozemky'!I36+(I36*G36)))-J36)","v":0}]
[null,null,null,null,null,0,0.21,0,0,0,{"$f":"IF(data!$G$2=TRUE,('1.Pozemky'!F37-'1.Pozemky'!I37),('1.Pozemky'!H37-('1.Pozemky'!I37+(I37*G37)))-J37)","v":0}]
[null,null,null,null,null,0,0.21,0,0,0,{"$f":"IF(data!$G$2=TRUE,('1.Pozemky'!F38-'1.Pozemky'!I38),('1.Pozemky'!H38-('1.Pozemky'!I38+(I38*G38)))-J38)","v":0}]
["Celkem",null,null,null,null,{"$f":"SUM(F25,F11)","v":2000000},null,{"$f":"SUM(H25,H11)","v":2420000},{"$f":"SUM(I25,I11)","v":0},{"$f":"SUM(J25,J11)","v":0},{"$f":"SUM(K25,K11)","v":2420000}]
[]
[null,null,null,null,null,null,null,"Komentář k nezpůsobilým výdajům:"]

{"sheet":"7.Osobní náklady","index":3,"n_rows":60,"n_cols":18,"rows_kept":60,"cut":false,"hidden":false,"merged":[[4,16,5,16],[4,17,5,17],[4,15,5,15],[6,0,10,0],[0,1,2,3],[11,0,57,0],[4,13,4,14],[4,1,5,1],[4,3,5,3],[4,4,5,4],[4,6,5,6],[4,7,5,7],[4,8,5,8],[4,12,5,12],[4,9,5,9],[4,11,5,11],[4,5,5,5],[4,10,5,10],[4,2,5,2]]}
["instrukce","Editujte pouze zelená pole. Tabulku vyplňujte v souladu s přílohou 2. Mzdy a platy Pravidel pro žadatele. Můžete přidávat řádky. Po přídání řádků zkontrolujte funkčnost výpočtů. Příklad kurzívou."]
[]
[]
[null,"Realizační tým"]
[null,"Název pozice","Mzdová sazba odpovídající úvazku ve výši 1,0 FTE/ hodinová sazba u DPP/DPČ","Průměrný úvazek (FTE) za kalendářní měsíc projektu / počet hodin za období realizace projektu v případě DPP/DPČ","Výše osobních nákladů za jeden kalendářní měsíc (hrubá mzda / plat) / Výše osobních nákladů za sledované období v případě DPP/DPČ","Výše osobních nákladů včetně odvodů na straně zaměstnavatele","Počet měsíců za vykazované období","Celkem","Způsob stanovení nákladů na zaměstnance","Kód ISPV","Mzda/plat/odměna","Charakteristika pracovího místa / náplň práce","Způsob doložení stanovení kódu","Období zapojení osoby do projektu",null,"Poznámka k výpočtu","Zapojený subjekt (příjemce/ konkrétní partner)","Popis vazby na aktivitu(y) projektu (sle SP)"]
[null,null,null,null,null,null,null,null,null,null,null,null,null,"Od (max 1.1.2021)","Do (max 31.12.2027)"]
["Hlavní administrativní tým - jednorázová částka","Hlavní projektový manažer",null,1,null,{"$f":"data!F11","v":142437.53770588237},null,{"$f":"F7*$G$11*D7","v":1709250.4524705885}]
[null,"Projektový manažer",null,0.5,null,{"$f":"data!F12","v":76454.539941176467},null,{"$f":"F8*$G$11*D8","v":458727.23964705877}]
[null,"Finanční manažer",null,0.5,null,{"$f":"data!F13","v":70468.2885882353},null,{"$f":"F9*$G$11*D9","v":422809.7315294118}]
[null,"Administrativní pracovník",null,0.3,null,{"$f":"data!F17","v":45128.680529411773},null,162463.24990588237]
[null,"2.7.1 Celkem",null,null,null,null,12,{"$f":"SUM(H7:H10)","v":2753250.6735529415}]
["Odborný tým","Pracovní smlovy",null,null,{"$f":"SUM(E13:E34)","v":280000},{"$f":"SUM(F13:F34)","v":374640},null,{"$f":"SUM(H13:H34)","v":2568960}]
[null,"lektor A",100000,0.8,{"$f":"C13*D13","v":80000},{"$f":"E13*1.338","v":107040},4,{"$f":"F13*G13","v":428160},"Jednotkový náklad",1111,"mzda",null,"Dle charakteristiky PM odpovídá nejlépe tento kód","2021-01-01","2021-12-31",null,"Partner A","Aktivita 1 "]
[null,"exceletní vědec B",100000,1,100000,{"$f":"E14*1.338","v":133800},4,{"$f":"F14*G14","v":535200}]
[null,"lektor C",100000,1,100000,133800,12,{"$f":"F15*G15","v":1605600}]
[null,null,0,null,0,0,null,0]
[null,null,0,null,0,0,null,0]
[null,null,0,null,0,0,null,0]
[null,null,0,null,0,0,null,0]
[null,null,0,null,0,0,null,0]
[null,null,0,null,0,0,null,0]
[null,null,0,null,0,0,null,0]
[null,null,0,null,0,0,null,0]
[null,null,0,null,0,0,null,0]
[null,null,0,null,0,0,null,0]
[null,null,0,null,0,0,null,0]
[null,null,0,null,0,0,null,0]
[null,null,0,null,0,0,null,0]
[null,null,0,null,0,0,null,0]
[null,null,0,null,0,0,null,0]
[null,null,0,null,0,0,null,0]
[null,null,0,null,0,0,null,0]
[null,null,0,null,0,0,null,0]
[null,null,0,null,0,0,null,0]
[null,"Dohody o pracovní činnosti",null,null,{"$f":"SUM(E36:E47)","v":30000},{"$f":"SUM(F47:F375)","v":40140},null,{"$f":"SUM(H36:H47)","v":40140}]
[null,"Osoba 1",500,60,{"$f":"C36*D36","v":30000},{"$f":"E36*1.338","v":40140},null,{"$f":"F36","v":40140},"Hodinová sazba - výpočet",1111,"odměna"]
[null,null,0,null,0,0,null,{"$f":"F37","v":0}]
[null,null,0,null,0,0,null,0]
[null,null,0,null,0,0,null,0]
[null,null,0,null,0,0,null,0]
[null,null,0,null,0,0,null,0]
[null,null,0,null,0,0,null,0]
[null,null,0,null,0,0,null,{"$f":"F43","v":0}]
[null,null,0,null,0,0,null,0]
[null,null,0,null,0,0,null,0]
[null,null,0,null,0,0,null,0]
[null,null,0,null,0,0,null,0]
[null,"Dohody o provedení práce (do výše 10 tis.Kč/měs)",null,null,{"$f":"SUM(E49:E53)","v":10000},{"$f":"SUM(F49:F53)","v":0},null,{"$f":"SUM(H49:H53)","v":10000}]
[null,"Osoba 1",500,20,{"$f":"C49*D49","v":10000},0,null,{"$f":"E49","v":10000},"Hodinová sazba - výpočet"]
[null,null,0,null,0,0,null,{"$f":"E50","v":0}]
[null,null,0,null,0,0,null,{"$f":"E51","v":0}]
[null,null,0,null,0,0,null,{"$f":"E52","v":0}]
[null,null,0,null,0,0,null,{"$f":"E53","v":0}]
[null,"Dohody o provedení práce (nad 10 tis.Kč/měs)",null,null,{"$f":"SUM(E55:E57)","v":15000},{"$f":"SUM(F55:F57)","v":20070},null,{"$f":"SUM(H55:H57)","v":20070}]
[null,"Osoba 1",1500,10,15000,{"$f":"_xlfn.IFS(E55>=10001,E55*1.338,E55<=10000,E55)","v":20070},null,{"$f":"F55","v":20070}]
[null,null,0,null,0,{"$f":"_xlfn.IFS(E56>=10001,E56*1.338,E56<=10000,E56)","v":0},null,0]
[null,null,0,null,0,{"$f":"_xlfn.IFS(E57>=10001,E57*1.338,E57<=10000,E57)","v":0},null,0]
[null,"2.7.2. Celkem",null,null,null,null,null,{"$f":"SUM(H48,H35,H12,H54)","v":2639170}]
[]
["Celkem",null,null,null,null,null,null,{"$f":"H11+H58","v":5392420.6735529415}]

{"sheet":"Paušál","index":4,"n_rows":18,"n_cols":5,"rows_kept":18,"cut":false,"hidden":false,"merged":[[17,0,18,11],[1,4,6,20]]}
["Paušál"]
["Název položky","Částka",null,"Instrukce","Editujte pouze zelená pole. Zpracování projektové dokumentace je v této výzvě přímým nákladem. Zpracování příloh žádosti a administrace VZ před podáním žádosti je v této výzvě přímým nákladem. Projekty podléhající režimu veřejné podpory, která vyžaduje splnění motivačního účinku (GBER, notifikovaná podpora), nemohou z důvodu specifických podmínek způsobilosti výdajů využít financování některých nepřímých nákladů paušální sazbou (provoz, výdaje předcházející podání žádosti...). Pro tyto případy bude žadatel specifikovat naplnění paušální částky v příloze Rozpočet. Paušální částka musí být zcela naplněna pouze způsobilými položkami. Pokud žadatel nebude schopen naplnit výši paušálu způsobilými položkami, budou mu výdaje hrazeny v režimu reálného vykazování. \nTěmto projektům budou i nadále propláceny způsobilé nepřímé výdaje v rámci ŽoP na základě skutečně vynaložených výdajů. Doložené nepřímé výdaje budou považovány za způsobilé maximálně do výše 7 % limitu paušální sazby pro jednotlivé kategorie CZPRV."]
["a) Správce stavby, technický autorský dozor,…",0]
["b) Osobní náklady",0]
["c) Spotřební materiál, zařízení a vybavení",0]
["d) Cestovní náhrady",0]
["e) Spotřební materiál, zařízení a vybavení",0]
["f) Prostory pro realizaci projektu",0]
["g) Ostatní provozní výdaje",0]
["h) Výdaje související s povinnou publicitou a propagací",0]
["i) Režijní náklady",0]
["j) Výdaje na vzdělávání administrativního a odborného týmu",0]
["Celkem",{"$f":"SUM(B3:B12)","v":0}]
["Paušál kontrolní odečet",{"$f":"Rozpočet_stratpro!G103-B13","v":0}]
[]
[]
[]
["Žadatel ztvrzuje, že náklady zahrnuté do paušální částky splňují podmínky pro daný režim Veřejné podpory."]

{"sheet":"data","index":5,"n_rows":17,"n_cols":9,"rows_kept":17,"cut":false,"hidden":true,"merged":[[8,2,9,2],[8,3,9,3],[8,4,9,4],[8,5,9,5],[13,0,16,0]]}
["Priorita","Specifický cíl","pozice","Admin_mzda/1FTE/1měsíc","Typ pracovně právního vztahu ","Způsob stanovení nákladů na zaměstnance","DPH","Forma odměny","Paušál"]
["1. Karlovarský kraj","1.1","Hlavní projektový manažer",142438,"Pracovní smlouva",null,false,"mzda",0.03]
["2. Ústecký kraj","2.1","Projektový manažer",76455,"DPČ","Hodinová sazba - výpočet",null,"plat",0.05]
["3. Moravskoslezský kraj","3.1","Finanční manažer",70468,"DPP","Jednotkový náklad ISPV",null,"odměna",7.0000000000000007E-2]
[null,null,"Administrativní pracovník",45129]
[]
[]
["Vážený průměr"]
["počet projektů plat",13,"Plat v Kč","Mzda v Kč","Sazba hrubé mzdy dle ISPV  (za plný úvazek) v Kč","Výše osobních nákladů, tj. hrubá mzda + odvody za zaměstnavatele (za plný úvazek) v  Kč"]
["počet projektů mzdy",21]
["Hlavní projektový manažer/ vedoucí projektu",2422,70687,128598,{"$f":"((C11*$B$9)+(D11*$B$10))/34","v":106455.55882352941},{"$f":"E11*1.338","v":142437.53770588237}]
["Projektový manažer/ týmový manažer",2422,47673,63002,{"$f":"((C12*$B$9)+(D12*$B$10))/34","v":57140.911764705881},{"$f":"E12*1.338","v":76454.539941176467}]
["Finanční manažer",2411,42052,59238,{"$f":"((C13*$B$9)+(D13*$B$10))/34","v":52666.882352941175},{"$f":"E13*1.338","v":70468.2885882353}]
["Administrativní pracovník",4110,33435,27325,{"$f":"((C14*$B$9)+(D14*$B$10))/34","v":29661.176470588234}]
[null,3343,36488,39354,38258.176470588238]
[null,4120,33489,33128,33266.029411764706]
[null,null,null,"průměr za (4110, 3343, 4120)",{"$f":"AVERAGE(E14:E16)","v":33728.460784313727},45128.680529411773]

{"sheet":"List2","index":6,"n_rows":49,"n_cols":8,"rows_kept":49,"cut":false,"hidden":true,"merged":[]}
["Volba","nezvoleno","PO 2"]
["nezvoleno","nezvoleno","2.2 a) Lokální spalovací stacionární zdroje"]
[null,null,"2.2 a) Ostatní spalovací stacionární zdroje"]
["PO_2",null,"2.2 b) Ostatní stacionární zdroje"]
[null,null,"2.2 c) Stacionární zdroje těkavých organických látek"]
[null,null,"2.2 d) Dodatečné technologie a změny technolog. postupů u spalovacích zdrojů"]
[null,null,"2.2 e) Dodatečné technologie a změny technolog. postupů u stacionárních zdrojů"]
[null,null,"2.2 f) Dodatečné technologie a změny technolog. postupů u stacionárních zdrojů těkavých organických látek"]
[null,null,"2.2 g) Technologie ke snižování emisí NH3"]
[null,null,"2.2 h) Omezování prašnosti z plošných zdrojů"]
[null,null,"2.2 i) Soustavy centralizovaného zásobování tepelnou energií"]
[null,null,"2.3 Projekty zaměřené na monitoring"]
[]
[]
[]
[]
[]
[]
[]
[]
[]
["Volba",true,false]
[true,"Kotel na pevná paliva","není"]
[false,"Kondenzační kotel na zemní plyn"]
[null,"Elektrické tepelné čerpadlo vzduch/voda"]
[null,"Elektrické tepelné čerpadlo země/voda"]
[null,"Elektrické tepelné čerpadlo voda/voda"]
[null,"Plynové tepelné čerpadlo vzduch/voda"]
[null,"Plynové tepelné čerpadlo země/voda"]
[null,"Plynové tepelné čerpadlo voda/voda"]
[null,"Plochý kolektor"]
[null,"Trubicový vakuový kolektor"]
[]
[]
[null,null,null,9400]
[null,null,null,8300]
[2,null,null,30000]
[8300,null,null,45900]
[false,null,null,45900]
[true,null,null,20600]
[false,null,null,34300]
[null,null,null,34300,2]
[null,null,null,26500,{"$f":"E42","v":2}]
[null,null,null,48400,2000]
[null,null,null,170000]
[]
[null,null,null,null,null,null,null,"KDYŽ(B2=\"ano\";C6*0,22;KDYŽ(B2=\"ne\";C6*0,05;\"chyba\"))"]
["Kotel na biomasu/tuhá paliva/plyn"]
["Plynové / Elektrické TČ"]